[Event "Titled Tuesday Blitz January 17 Late 2023"]
[White "Janaszak, Dawid"]
[Black "Kalajzic, Ivan"]
[WhiteFideId "1119206"]
[BlackFideId "14506378"]
[WhiteElo "2316"]
[BlackElo "2062"]
[Result "1-0"]
[Round "03"]
[TimeControl "180+2"]
[Date "2023.01.17"]
[WhiteClock "0:01:29"]
[BlackClock "0:00:32"]

1. e4 {[%clk 0:03:00]}  Nc6 {[%clk 0:02:52]} 2. Nf3 {[%clk 0:03:00]}  d6 {[%clk 0:02:52]} 3. d4 {[%clk 0:02:59]}  Bg4 {[%clk 0:02:52]} 4. Bb5 {[%clk 0:02:56]}  a6 {[%clk 0:02:52]} 5. Bxc6+ {[%clk 0:02:55]}  bxc6 {[%clk 0:02:52]} 6. h3 {[%clk 0:02:56]}  Bh5 {[%clk 0:02:52]} 7. O-O {[%clk 0:02:55]}  Nf6 {[%clk 0:02:52]} 8. Re1 {[%clk 0:02:54]}  Nd7 {[%clk 0:02:53]} 9. Nbd2 {[%clk 0:02:51]}  c5 {[%clk 0:02:52]} 10. dxc5 {[%clk 0:02:43]}  Nxc5 {[%clk 0:02:52]} 11. Nf1 {[%clk 0:02:43]}  e5 {[%clk 0:02:49]} 12. Ng3 {[%clk 0:02:43]}  Bxf3 {[%clk 0:02:47]} 13. Qxf3 {[%clk 0:02:42]}  g6 {[%clk 0:02:47]} 14. Be3 {[%clk 0:02:37]}  Ne6 {[%clk 0:02:46]} 15. Nf5 {[%clk 0:02:21]}  Qd7 {[%clk 0:02:16]} 16. Rad1 {[%clk 0:02:11]}  h6 {[%clk 0:01:48]} 17. Rd3 {[%clk 0:01:59]}  gxf5 {[%clk 0:01:48]} 18. exf5 {[%clk 0:01:58]}  Ng5 {[%clk 0:01:49]} 19. Qxa8+ {[%clk 0:01:57]}  Ke7 {[%clk 0:01:31]} 20. Bxg5+ {[%clk 0:01:57]}  hxg5 {[%clk 0:01:31]} 21. Rxe5+ {[%clk 0:01:55]}  Kf6 {[%clk 0:01:28]} 22. Re8 {[%clk 0:01:53]}  Rh4 {[%clk 0:00:36]} 23. Rxf8 {[%clk 0:01:46]}  Qxf5 {[%clk 0:00:32]} 24. Qd8+ {[%clk 0:01:29]} 1-0


[Site "https://www.chess.com"]

[Event "Titled Tuesday Blitz January 17 Late 2023"]
[White "Melikhov, Evgeny V."]
[Black "Odegov, Artem"]
[WhiteFideId "4122046"]
[BlackFideId "34183644"]
[WhiteElo "2269"]
[BlackElo "2261"]
[Result "1-0"]
[Round "03"]
[TimeControl "180+2"]
[Date "2023.01.17"]
[WhiteClock "0:00:11"]
[BlackClock "0:00:02"]

1. d4 {[%clk 0:03:00]}  Nf6 {[%clk 0:02:59]} 2. c4 {[%clk 0:02:58]}  e6 {[%clk 0:02:57]} 3. Nc3 {[%clk 0:02:58]}  Bb4 {[%clk 0:02:55]} 4. Qc2 {[%clk 0:02:59]}  O-O {[%clk 0:02:53]} 5. e4 {[%clk 0:02:58]}  d5 {[%clk 0:02:51]} 6. e5 {[%clk 0:02:58]}  Ne4 {[%clk 0:02:39]} 7. Bd3 {[%clk 0:02:57]}  f5 {[%clk 0:02:39]} 8. exf6 {[%clk 0:02:56]}  Nxf6 {[%clk 0:02:22]} 9. Nf3 {[%clk 0:02:56]}  c5 {[%clk 0:02:16]} 10. a3 {[%clk 0:02:47]}  cxd4 {[%clk 0:02:13]} 11. axb4 {[%clk 0:02:44]}  dxc3 {[%clk 0:02:12]} 12. bxc3 {[%clk 0:02:39]}  Nc6 {[%clk 0:01:39]} 13. O-O {[%clk 0:02:37]}  e5 {[%clk 0:01:36]} 14. cxd5 {[%clk 0:02:32]}  Qxd5 {[%clk 0:01:37]} 15. Ng5 {[%clk 0:02:19]}  h6 {[%clk 0:01:14]} 16. Ne4 {[%clk 0:02:05]}  Be6 {[%clk 0:01:05]} 17. Nxf6+ {[%clk 0:01:58]}  Rxf6 {[%clk 0:01:01]} 18. Be4 {[%clk 0:01:53]}  Qc4 {[%clk 0:00:58]} 19. Bd3 {[%clk 0:01:46]}  Qh4 {[%clk 0:00:52]} 20. Qe2 {[%clk 0:01:35]}  Raf8 {[%clk 0:00:50]} 21. Qe4 {[%clk 0:01:32]}  Qxe4 {[%clk 0:00:50]} 22. Bxe4 {[%clk 0:01:32]}  Bc4 {[%clk 0:00:50]} 23. Re1 {[%clk 0:01:13]}  Rxf2 {[%clk 0:00:49]} 24. Be3 {[%clk 0:01:13]}  Rb2 {[%clk 0:00:42]} 25. Bc5 {[%clk 0:00:32]}  Rd8 {[%clk 0:00:40]} 26. Rad1 {[%clk 0:00:23]}  Rbd2 {[%clk 0:00:30]} 27. Rxd2 {[%clk 0:00:21]}  Rxd2 {[%clk 0:00:30]} 28. Bxc6 {[%clk 0:00:20]}  bxc6 {[%clk 0:00:30]} 29. Bxa7 {[%clk 0:00:21]}  Bd5 {[%clk 0:00:29]} 30. Rxe5 {[%clk 0:00:19]}  Rxg2+ {[%clk 0:00:28]} 31. Kf1 {[%clk 0:00:19]}  Rxh2 {[%clk 0:00:27]} 32. Bd4 {[%clk 0:00:17]}  Rh4 {[%clk 0:00:11]} 33. Kf2 {[%clk 0:00:15]}  Rg4 {[%clk 0:00:11]} 34. b5 {[%clk 0:00:15]}  Bh1 {[%clk 0:00:06]} 35. b6 {[%clk 0:00:14]}  c5 {[%clk 0:00:06]} 36. Bxc5 {[%clk 0:00:13]}  Rg6 {[%clk 0:00:05]} 37. Bd4 {[%clk 0:00:12]}  Rf6+ {[%clk 0:00:05]} 38. Kg3 {[%clk 0:00:11]}  Rf7 {[%clk 0:00:03]} 39. Rc5 {[%clk 0:00:11]}  Kh7 {[%clk 0:00:02]} 40. Rc7 {[%clk 0:00:11]} 1-0


[Site "https://www.chess.com"]

[Event "Titled Tuesday Blitz January 17 Late 2023"]
[White "Seletsky, Grigory"]
[Black "Pert, Richard G"]
[WhiteFideId "14112191"]
[BlackFideId "404748"]
[WhiteElo "2259"]
[BlackElo "2412"]
[Result "0-1"]
[Round "03"]
[TimeControl "180+2"]
[Date "2023.01.17"]
[WhiteClock "0:01:16"]
[BlackClock "0:01:09"]

1. e4 {[%clk 0:02:58]}  c5 {[%clk 0:02:59]} 2. Nc3 {[%clk 0:02:59]}  Nc6 {[%clk 0:02:58]} 3. d3 {[%clk 0:02:56]}  g6 {[%clk 0:02:56]} 4. Be3 {[%clk 0:02:56]}  b6 {[%clk 0:02:49]} 5. d4 {[%clk 0:02:55]}  cxd4 {[%clk 0:02:47]} 6. Bxd4 {[%clk 0:02:56]}  Nxd4 {[%clk 0:02:42]} 7. Qxd4 {[%clk 0:02:57]}  Nf6 {[%clk 0:02:42]} 8. e5 {[%clk 0:02:55]}  Nh5 {[%clk 0:02:42]} 9. e6 {[%clk 0:02:51]}  f6 {[%clk 0:02:18]} 10. Bb5 {[%clk 0:02:19]}  a6 {[%clk 0:02:15]} 11. exd7+ {[%clk 0:02:08]}  Bxd7 {[%clk 0:02:13]} 12. Bxd7+ {[%clk 0:02:06]}  Qxd7 {[%clk 0:02:12]} 13. Qxb6 {[%clk 0:02:04]}  Bh6 {[%clk 0:02:10]} 14. Rd1 {[%clk 0:02:03]}  Qc8 {[%clk 0:02:01]} 15. Nd5 {[%clk 0:01:57]}  Rb8 {[%clk 0:01:44]} 16. Nc7+ {[%clk 0:01:37]}  Kf7 {[%clk 0:01:40]} 17. Qc6 {[%clk 0:01:27]}  Rd8 {[%clk 0:01:11]} 18. Qc4+ {[%clk 0:01:24]}  e6 {[%clk 0:01:11]} 19. Rxd8 {[%clk 0:01:20]}  Qxd8 {[%clk 0:01:11]} 20. Nxe6 {[%clk 0:01:16]}  Qd2+ {[%clk 0:01:09]} 0-1


[Site "https://www.chess.com"]

[Event "Titled Tuesday Blitz January 17 Late 2023"]
[White "Kovacs, Klara"]
[Black "Cori T., Deysi"]
[WhiteFideId "733210"]
[BlackFideId "3801934"]
[WhiteElo "2121"]
[BlackElo "2362"]
[Result "0-1"]
[Round "03"]
[TimeControl "180+2"]
[Date "2023.01.17"]
[WhiteClock "0:00:34"]
[BlackClock "0:01:55"]

1. d4 {[%clk 0:03:00]}  Nf6 {[%clk 0:02:58]} 2. Nf3 {[%clk 0:03:00]}  e6 {[%clk 0:02:59]} 3. g3 {[%clk 0:02:59]}  b6 {[%clk 0:02:58]} 4. Bg2 {[%clk 0:03:00]}  Bb7 {[%clk 0:02:59]} 5. O-O {[%clk 0:03:00]}  Be7 {[%clk 0:02:58]} 6. Nc3 {[%clk 0:03:00]}  O-O {[%clk 0:02:59]} 7. Re1 {[%clk 0:02:59]}  d5 {[%clk 0:02:59]} 8. Ne5 {[%clk 0:02:58]}  Nbd7 {[%clk 0:02:59]} 9. Bf4 {[%clk 0:02:59]}  c5 {[%clk 0:02:59]} 10. e4 {[%clk 0:02:56]}  cxd4 {[%clk 0:02:58]} 11. Qxd4 {[%clk 0:02:55]}  Bc5 {[%clk 0:02:59]} 12. Qd2 {[%clk 0:02:54]}  Nxe5 {[%clk 0:02:56]} 13. Bxe5 {[%clk 0:02:55]}  Ng4 {[%clk 0:02:56]} 14. Rf1 {[%clk 0:02:24]}  Nxe5 {[%clk 0:02:54]} 15. exd5 {[%clk 0:02:21]}  exd5 {[%clk 0:02:53]} 16. a3 {[%clk 0:02:17]}  Nc4 {[%clk 0:02:48]} 17. Qc1 {[%clk 0:02:15]}  a5 {[%clk 0:02:38]} 18. b3 {[%clk 0:02:08]}  Bd4 {[%clk 0:02:36]} 19. bxc4 {[%clk 0:01:54]}  Bxc3 {[%clk 0:02:36]} 20. Rb1 {[%clk 0:01:54]}  Qf6 {[%clk 0:02:34]} 21. cxd5 {[%clk 0:01:51]}  Rfd8 {[%clk 0:02:32]} 22. Rd1 {[%clk 0:01:34]}  Bd4 {[%clk 0:02:31]} 23. Qd2 {[%clk 0:01:34]}  Bc5 {[%clk 0:02:30]} 24. c4 {[%clk 0:01:34]}  Bxa3 {[%clk 0:02:28]} 25. h4 {[%clk 0:01:20]}  Rac8 {[%clk 0:02:26]} 26. Qd3 {[%clk 0:01:18]}  Bc5 {[%clk 0:02:25]} 27. Rd2 {[%clk 0:01:14]}  h6 {[%clk 0:02:23]} 28. Be4 {[%clk 0:01:11]}  Ba6 {[%clk 0:02:23]} 29. Rc2 {[%clk 0:01:08]}  a4 {[%clk 0:02:05]} 30. Kg2 {[%clk 0:01:08]}  a3 {[%clk 0:02:05]} 31. Rb3 {[%clk 0:01:06]}  Qe7 {[%clk 0:02:01]} 32. Qf3 {[%clk 0:01:01]}  Rd6 {[%clk 0:01:59]} 33. Qf5 {[%clk 0:00:57]}  g6 {[%clk 0:01:59]} 34. Qf3 {[%clk 0:00:49]}  Rf6 {[%clk 0:01:59]} 35. Qd3 {[%clk 0:00:46]}  Re8 {[%clk 0:01:59]} 36. f3 {[%clk 0:00:40]}  Qe5 {[%clk 0:01:56]} 37. Rb1 {[%clk 0:00:34]}  Bd6 {[%clk 0:01:55]} 0-1


[Site "https://www.chess.com"]

[Event "Titled Tuesday Blitz January 17 Late 2023"]
[White "Megalios, Konstantinos"]
[Black "Degtiarev, Evgeny"]
[WhiteFideId "4238044"]
[BlackFideId "4149610"]
[WhiteElo "2372"]
[BlackElo "2385"]
[Result "1-0"]
[Round "03"]
[TimeControl "180+2"]
[Date "2023.01.17"]
[WhiteClock "0:00:07"]
[BlackClock "0:00:03"]

1. e4 {[%clk 0:03:00]}  e5 {[%clk 0:02:59]} 2. Nf3 {[%clk 0:02:59]}  Nc6 {[%clk 0:02:58]} 3. Bb5 {[%clk 0:02:59]}  Nf6 {[%clk 0:02:57]} 4. d3 {[%clk 0:02:57]}  Bc5 {[%clk 0:02:57]} 5. Bxc6 {[%clk 0:02:57]}  dxc6 {[%clk 0:02:54]} 6. Nbd2 {[%clk 0:02:57]}  Bd6 {[%clk 0:02:44]} 7. Nc4 {[%clk 0:02:50]}  Be6 {[%clk 0:02:43]} 8. Ncxe5 {[%clk 0:02:38]}  Qe7 {[%clk 0:02:42]} 9. O-O {[%clk 0:02:22]}  h6 {[%clk 0:02:42]} 10. Re1 {[%clk 0:02:15]}  O-O-O {[%clk 0:02:41]} 11. Nxc6 {[%clk 0:02:13]}  bxc6 {[%clk 0:02:39]} 12. e5 {[%clk 0:02:14]}  Bg4 {[%clk 0:02:32]} 13. exd6 {[%clk 0:02:07]}  Qxd6 {[%clk 0:02:32]} 14. Be3 {[%clk 0:01:33]}  Nd5 {[%clk 0:02:22]} 15. c3 {[%clk 0:01:05]}  c5 {[%clk 0:01:57]} 16. a4 {[%clk 0:00:58]}  Rhe8 {[%clk 0:01:46]} 17. d4 {[%clk 0:00:35]}  c4 {[%clk 0:01:31]} 18. a5 {[%clk 0:00:34]}  Qf6 {[%clk 0:01:14]} 19. Ra4 {[%clk 0:00:32]}  Nf4 {[%clk 0:00:33]} 20. Bxf4 {[%clk 0:00:28]}  Qxf4 {[%clk 0:00:23]} 21. Rxe8 {[%clk 0:00:13]}  Rxe8 {[%clk 0:00:24]} 22. Ra1 {[%clk 0:00:12]}  Bxf3 {[%clk 0:00:19]} 23. Qxf3 {[%clk 0:00:13]}  Qxf3 {[%clk 0:00:19]} 24. gxf3 {[%clk 0:00:14]}  Re2 {[%clk 0:00:19]} 25. Ra4 {[%clk 0:00:14]}  Rxb2 {[%clk 0:00:17]} 26. Rxc4 {[%clk 0:00:15]}  Rb5 {[%clk 0:00:17]} 27. Ra4 {[%clk 0:00:10]}  Kd7 {[%clk 0:00:16]} 28. Kf1 {[%clk 0:00:10]}  Kd6 {[%clk 0:00:16]} 29. Ke2 {[%clk 0:00:10]}  Rb2+ {[%clk 0:00:15]} 30. Ke3 {[%clk 0:00:10]}  a6 {[%clk 0:00:15]} 31. Rc4 {[%clk 0:00:09]}  Rb5 {[%clk 0:00:14]} 32. Ra4 {[%clk 0:00:09]}  Rb2 {[%clk 0:00:12]} 33. c4 {[%clk 0:00:06]}  Rb3+ {[%clk 0:00:11]} 34. Ke4 {[%clk 0:00:07]}  Rb2 {[%clk 0:00:11]} 35. Ra1 {[%clk 0:00:06]}  Rxf2 {[%clk 0:00:11]} 36. Rb1 {[%clk 0:00:06]}  Rxh2 {[%clk 0:00:10]} 37. Rb8 {[%clk 0:00:06]}  Ra2 {[%clk 0:00:10]} 38. Rd8+ {[%clk 0:00:06]}  Ke7 {[%clk 0:00:09]} 39. Rc8 {[%clk 0:00:06]}  Kd7 {[%clk 0:00:09]} 40. Rf8 {[%clk 0:00:06]}  Ke7 {[%clk 0:00:09]} 41. Rg8 {[%clk 0:00:06]}  Rxa5 {[%clk 0:00:08]} 42. Rxg7 {[%clk 0:00:07]}  Rg5 {[%clk 0:00:08]} 43. Rh7 {[%clk 0:00:07]}  Rg6 {[%clk 0:00:08]} 44. c5 {[%clk 0:00:06]}  a5 {[%clk 0:00:08]} 45. f4 {[%clk 0:00:07]}  a4 {[%clk 0:00:07]} 46. f5 {[%clk 0:00:07]}  Ra6 {[%clk 0:00:07]} 47. Rg7 {[%clk 0:00:05]}  a3 {[%clk 0:00:07]} 48. Rg1 {[%clk 0:00:06]}  a2 {[%clk 0:00:07]} 49. Ra1 {[%clk 0:00:07]}  Ra3 {[%clk 0:00:07]} 50. Kd5 {[%clk 0:00:07]}  h5 {[%clk 0:00:07]} 51. Kc6 {[%clk 0:00:07]}  Kd8 {[%clk 0:00:07]} 52. d5 {[%clk 0:00:07]}  h4 {[%clk 0:00:06]} 53. f6 {[%clk 0:00:08]}  h3 {[%clk 0:00:05]} 54. Rg1 {[%clk 0:00:08]}  Re3 {[%clk 0:00:04]} 55. Ra1 {[%clk 0:00:07]}  h2 {[%clk 0:00:03]} 56. Rxa2 {[%clk 0:00:07]} 1-0


[Site "https://www.chess.com"]

[Event "Titled Tuesday Blitz January 17 Late 2023"]
[White "Taboas Rodriguez, Daniel"]
[Black "Szente Varga, Fruzsina"]
[WhiteFideId "2208466"]
[BlackFideId "712264"]
[WhiteElo "2371"]
[BlackElo "2075"]
[Result "1-0"]
[Round "03"]
[TimeControl "180+2"]
[Date "2023.01.17"]
[WhiteClock "0:01:25"]
[BlackClock "0:00:36"]

1. d4 {[%clk 0:02:50]}  Nf6 {[%clk 0:03:00]} 2. Nf3 {[%clk 0:02:51]}  g6 {[%clk 0:02:59]} 3. c4 {[%clk 0:02:51]}  Bg7 {[%clk 0:03:00]} 4. Nc3 {[%clk 0:02:52]}  O-O {[%clk 0:03:00]} 5. e4 {[%clk 0:02:52]}  d6 {[%clk 0:03:00]} 6. Be2 {[%clk 0:02:53]}  e5 {[%clk 0:03:01]} 7. dxe5 {[%clk 0:02:54]}  dxe5 {[%clk 0:03:01]} 8. Qxd8 {[%clk 0:02:55]}  Rxd8 {[%clk 0:03:02]} 9. Bg5 {[%clk 0:02:56]}  Re8 {[%clk 0:03:02]} 10. Nd5 {[%clk 0:02:56]}  Nxd5 {[%clk 0:02:59]} 11. cxd5 {[%clk 0:02:57]}  c6 {[%clk 0:03:00]} 12. Bc4 {[%clk 0:02:57]}  cxd5 {[%clk 0:02:56]} 13. Bxd5 {[%clk 0:02:58]}  Nc6 {[%clk 0:02:56]} 14. O-O-O {[%clk 0:02:58]}  Nb4 {[%clk 0:02:48]} 15. Bb3 {[%clk 0:02:57]}  Be6 {[%clk 0:02:48]} 16. Bxe6 {[%clk 0:02:54]}  Rxe6 {[%clk 0:02:49]} 17. Kb1 {[%clk 0:02:53]}  h6 {[%clk 0:02:41]} 18. Be3 {[%clk 0:02:50]}  f5 {[%clk 0:02:41]} 19. Rd7 {[%clk 0:02:48]}  f4 {[%clk 0:02:37]} 20. Bc5 {[%clk 0:02:46]}  Na6 {[%clk 0:02:37]} 21. Rc1 {[%clk 0:02:41]}  b6 {[%clk 0:02:37]} 22. Ba3 {[%clk 0:02:31]}  b5 {[%clk 0:02:36]} 23. b3 {[%clk 0:02:28]}  g5 {[%clk 0:02:22]} 24. h3 {[%clk 0:02:16]}  Bf6 {[%clk 0:02:00]} 25. Rd6 {[%clk 0:02:11]}  Rxd6 {[%clk 0:01:39]} 26. Bxd6 {[%clk 0:02:12]}  Re8 {[%clk 0:01:39]} 27. Rc6 {[%clk 0:02:09]}  Re6 {[%clk 0:01:33]} 28. Rxa6 {[%clk 0:02:00]}  Be7 {[%clk 0:01:33]} 29. Rxa7 {[%clk 0:01:43]}  Bxd6 {[%clk 0:01:31]} 30. Ra6 {[%clk 0:01:43]}  Kf7 {[%clk 0:01:27]} 31. Kc2 {[%clk 0:01:41]}  b4 {[%clk 0:01:15]} 32. Ne1 {[%clk 0:01:33]}  f3 {[%clk 0:00:42]} 33. Nxf3 {[%clk 0:01:31]}  Bc5 {[%clk 0:00:41]} 34. Rxe6 {[%clk 0:01:29]}  Kxe6 {[%clk 0:00:42]} 35. Kd3 {[%clk 0:01:28]}  Bxf2 {[%clk 0:00:42]} 36. Kc4 {[%clk 0:01:28]}  Be3 {[%clk 0:00:36]} 37. g4 {[%clk 0:01:25]} 1-0


[Site "https://www.chess.com"]

[Event "Titled Tuesday Blitz January 17 Late 2023"]
[White "Defend, Balint"]
[Black "Liu, Kelsey"]
[WhiteFideId "17004853"]
[BlackFideId "30944481"]
[WhiteElo "1673"]
[BlackElo "2065"]
[Result "0-1"]
[Round "03"]
[TimeControl "180+2"]
[Date "2023.01.17"]
[WhiteClock "0:00:14"]
[BlackClock "0:00:29"]

1. e4 {[%clk 0:02:59]}  c5 {[%clk 0:02:58]} 2. Nf3 {[%clk 0:02:58]}  e6 {[%clk 0:02:58]} 3. c3 {[%clk 0:02:56]}  Nf6 {[%clk 0:02:57]} 4. e5 {[%clk 0:02:56]}  Nd5 {[%clk 0:02:57]} 5. d4 {[%clk 0:02:56]}  cxd4 {[%clk 0:02:58]} 6. cxd4 {[%clk 0:02:56]}  Nc6 {[%clk 0:02:58]} 7. Bc4 {[%clk 0:02:55]}  d6 {[%clk 0:02:58]} 8. Qe2 {[%clk 0:02:53]}  Be7 {[%clk 0:02:57]} 9. O-O {[%clk 0:02:53]}  O-O {[%clk 0:02:57]} 10. Rd1 {[%clk 0:02:53]}  Qc7 {[%clk 0:02:52]} 11. Qe4 {[%clk 0:02:29]}  Ndb4 {[%clk 0:02:12]} 12. exd6 {[%clk 0:02:19]}  Bxd6 {[%clk 0:02:11]} 13. Nc3 {[%clk 0:02:17]}  a6 {[%clk 0:02:10]} 14. a3 {[%clk 0:02:15]}  Nd5 {[%clk 0:02:01]} 15. Nxd5 {[%clk 0:02:09]}  exd5 {[%clk 0:02:02]} 16. Bxd5 {[%clk 0:02:09]}  Bd7 {[%clk 0:01:59]} 17. Ng5 {[%clk 0:01:48]}  g6 {[%clk 0:01:53]} 18. Qh4 {[%clk 0:01:47]}  h5 {[%clk 0:01:43]} 19. Nxf7 {[%clk 0:01:33]}  Rxf7 {[%clk 0:01:35]} 20. Qf6 {[%clk 0:01:33]}  Bf5 {[%clk 0:01:12]} 21. Bxf7+ {[%clk 0:01:32]}  Qxf7 {[%clk 0:01:11]} 22. Qxd6 {[%clk 0:01:31]}  Rd8 {[%clk 0:01:01]} 23. Qc5 {[%clk 0:01:30]}  Bg4 {[%clk 0:00:57]} 24. Bg5 {[%clk 0:01:22]}  Rd5 {[%clk 0:00:54]} 25. Qc4 {[%clk 0:01:02]}  Bxd1 {[%clk 0:00:51]} 26. Rxd1 {[%clk 0:01:01]}  Rxg5 {[%clk 0:00:51]} 27. d5 {[%clk 0:00:37]}  Ne5 {[%clk 0:00:42]} 28. Qc8+ {[%clk 0:00:31]}  Kg7 {[%clk 0:00:42]} 29. d6 {[%clk 0:00:30]}  Qf3 {[%clk 0:00:31]} 30. Qxb7+ {[%clk 0:00:16]}  Qxb7 {[%clk 0:00:30]} 31. g3 {[%clk 0:00:14]}  Nf3+ {[%clk 0:00:28]} 32. Kf1 {[%clk 0:00:14]}  Nxh2+ {[%clk 0:00:29]} 33. Ke2 {[%clk 0:00:14]}  Qf3+ {[%clk 0:00:28]} 34. Kd2 {[%clk 0:00:14]}  Rd5+ {[%clk 0:00:29]} 35. Kc2 {[%clk 0:00:14]}  Qxd1+ {[%clk 0:00:29]} 0-1


[Site "https://www.chess.com"]

[Event "Titled Tuesday Blitz January 17 Late 2023"]
[White "Bilan, Danila"]
[Black "Pace, Christopher"]
[WhiteFideId "24161918"]
[BlackFideId "2610167"]
[WhiteElo "2303"]
[BlackElo "2053"]
[Result "1-0"]
[Round "03"]
[TimeControl "180+2"]
[Date "2023.01.17"]
[WhiteClock "0:00:17"]
[BlackClock "0:00:09"]

1. d4 {[%clk 0:02:58]}  Nf6 {[%clk 0:02:59]} 2. Nf3 {[%clk 0:02:57]}  g6 {[%clk 0:02:57]} 3. Bg5 {[%clk 0:02:56]}  Bg7 {[%clk 0:02:57]} 4. c3 {[%clk 0:02:56]}  O-O {[%clk 0:02:58]} 5. Nbd2 {[%clk 0:02:56]}  d6 {[%clk 0:02:58]} 6. e4 {[%clk 0:02:56]}  Nc6 {[%clk 0:02:58]} 7. Qc2 {[%clk 0:02:53]}  e5 {[%clk 0:02:58]} 8. dxe5 {[%clk 0:02:51]}  dxe5 {[%clk 0:02:58]} 9. Bc4 {[%clk 0:02:51]}  Qe7 {[%clk 0:02:54]} 10. O-O {[%clk 0:02:48]}  h6 {[%clk 0:02:53]} 11. Bh4 {[%clk 0:02:46]}  Be6 {[%clk 0:02:38]} 12. Rad1 {[%clk 0:02:33]}  Rad8 {[%clk 0:02:34]} 13. Rfe1 {[%clk 0:02:28]}  Rd7 {[%clk 0:02:27]} 14. Bb5 {[%clk 0:02:13]}  g5 {[%clk 0:02:24]} 15. Bg3 {[%clk 0:02:08]}  Nh5 {[%clk 0:02:24]} 16. Bxc6 {[%clk 0:01:51]}  bxc6 {[%clk 0:02:25]} 17. Bxe5 {[%clk 0:01:43]}  Rfd8 {[%clk 0:01:11]} 18. Bxg7 {[%clk 0:01:33]}  Kxg7 {[%clk 0:01:12]} 19. Nd4 {[%clk 0:01:29]}  Qc5 {[%clk 0:00:31]} 20. b4 {[%clk 0:00:38]}  Qb6 {[%clk 0:00:19]} 21. Nxe6+ {[%clk 0:00:36]}  fxe6 {[%clk 0:00:19]} 22. Nb3 {[%clk 0:00:32]}  Nf4 {[%clk 0:00:14]} 23. Nc5 {[%clk 0:00:28]}  Rxd1 {[%clk 0:00:14]} 24. Rxd1 {[%clk 0:00:29]}  Rd6 {[%clk 0:00:09]} 25. g3 {[%clk 0:00:23]}  Ng6 {[%clk 0:00:07]} 26. Rxd6 {[%clk 0:00:20]}  cxd6 {[%clk 0:00:08]} 27. Nxe6+ {[%clk 0:00:21]}  Kf6 {[%clk 0:00:09]} 28. Nd4 {[%clk 0:00:19]}  Ne5 {[%clk 0:00:09]} 29. Qe2 {[%clk 0:00:17]}  g4 {[%clk 0:00:09]} 30. Qe3 {[%clk 0:00:16]}  Kg6 {[%clk 0:00:10]} 31. Qf4 {[%clk 0:00:15]}  Qa6 {[%clk 0:00:10]} 32. Qf5+ {[%clk 0:00:15]}  Kg7 {[%clk 0:00:11]} 33. Ne6+ {[%clk 0:00:16]}  Kh8 {[%clk 0:00:09]} 34. Qf8+ {[%clk 0:00:16]}  Kh7 {[%clk 0:00:09]} 35. Qg7# {[%clk 0:00:17]} 1-0


[Site "https://www.chess.com"]

[Event "Titled Tuesday Blitz January 17 Late 2023"]
[White "Przybylski, Wojciech"]
[Black "Jenkins, Drake"]
[WhiteFideId "1117599"]
[BlackFideId "2022397"]
[WhiteElo "2321"]
[BlackElo "2130"]
[Result "1-0"]
[Round "03"]
[TimeControl "180+2"]
[Date "2023.01.17"]
[WhiteClock "0:00:20"]
[BlackClock "0:00:01"]

1. d4 {[%clk 0:03:00]}  Nf6 {[%clk 0:02:55]} 2. c4 {[%clk 0:03:00]}  c5 {[%clk 0:02:54]} 3. Nf3 {[%clk 0:02:58]}  g6 {[%clk 0:02:54]} 4. Nc3 {[%clk 0:02:58]}  cxd4 {[%clk 0:02:54]} 5. Nxd4 {[%clk 0:02:58]}  Nc6 {[%clk 0:02:52]} 6. e4 {[%clk 0:02:58]}  Bg7 {[%clk 0:02:51]} 7. Be3 {[%clk 0:02:57]}  O-O {[%clk 0:02:48]} 8. Be2 {[%clk 0:02:55]}  Nxd4 {[%clk 0:02:42]} 9. Bxd4 {[%clk 0:02:55]}  d6 {[%clk 0:02:42]} 10. O-O {[%clk 0:02:54]}  Be6 {[%clk 0:02:42]} 11. Rc1 {[%clk 0:02:51]}  a6 {[%clk 0:02:39]} 12. b3 {[%clk 0:02:51]}  Qd7 {[%clk 0:02:27]} 13. f3 {[%clk 0:02:48]}  Rfb8 {[%clk 0:02:19]} 14. a4 {[%clk 0:02:47]}  Ne8 {[%clk 0:01:44]} 15. Bb6 {[%clk 0:02:46]}  Rc8 {[%clk 0:01:33]} 16. a5 {[%clk 0:02:45]}  f5 {[%clk 0:01:20]} 17. Qd2 {[%clk 0:02:34]}  Nf6 {[%clk 0:01:18]} 18. Bd3 {[%clk 0:02:28]}  fxe4 {[%clk 0:01:16]} 19. fxe4 {[%clk 0:02:28]}  Rf8 {[%clk 0:01:08]} 20. h3 {[%clk 0:02:19]}  Nh5 {[%clk 0:00:59]} 21. Nd5 {[%clk 0:02:06]}  Bxd5 {[%clk 0:00:54]} 22. cxd5 {[%clk 0:01:59]}  Rxf1+ {[%clk 0:00:51]} 23. Bxf1 {[%clk 0:01:58]}  Rc8 {[%clk 0:00:46]} 24. Bc4 {[%clk 0:01:56]}  Be5 {[%clk 0:00:40]} 25. Rf1 {[%clk 0:01:54]}  Ng3 {[%clk 0:00:34]} 26. Re1 {[%clk 0:01:41]}  Rf8 {[%clk 0:00:34]} 27. Bf2 {[%clk 0:01:32]}  Qd8 {[%clk 0:00:20]} 28. Re3 {[%clk 0:01:14]}  Nh5 {[%clk 0:00:16]} 29. g3 {[%clk 0:01:14]}  Qe8 {[%clk 0:00:12]} 30. Be2 {[%clk 0:01:08]}  Nf6 {[%clk 0:00:11]} 31. Qb4 {[%clk 0:01:02]}  Qd7 {[%clk 0:00:09]} 32. Kg2 {[%clk 0:01:00]}  Ne8 {[%clk 0:00:08]} 33. Bg4 {[%clk 0:00:42]}  Qc7 {[%clk 0:00:07]} 34. Be6+ {[%clk 0:00:42]}  Kh8 {[%clk 0:00:06]} 35. Rf3 {[%clk 0:00:34]}  Rxf3 {[%clk 0:00:06]} 36. Kxf3 {[%clk 0:00:35]}  Kg7 {[%clk 0:00:05]} 37. h4 {[%clk 0:00:32]}  Nf6 {[%clk 0:00:05]} 38. Qd2 {[%clk 0:00:24]}  h6 {[%clk 0:00:02]} 39. Be3 {[%clk 0:00:25]}  h5 {[%clk 0:00:01]} 40. Bh6+ {[%clk 0:00:24]}  Kh7 {[%clk 0:00:01]} 41. Be3 {[%clk 0:00:20]} 1-0


[Site "https://www.chess.com"]